bitfinex-derivatives/quotes_ETHF0:USTF0_20250730
["timestamp","ask_amount","ask_price","bid_price","bid_amount"]
[1753852226913,2.61161255,3800.6,3800.5,0.73052]
[1753852227410,0.31,3800.6,3800.5,0.73052]
[1753852227613,0.31,3800.6,3800.5,1.03882]
[1753852228002,1.4452,3801.0,3800.9,1.03875]
[1753852228706,1.7555,3801.0,3800.9,0.5125]
[1753852229511,5.750516,3801.0,3800.9,0.5125]
[1753852230704,5.750516,3801.0,3799.9,3.503]
[1753852230705,0.31,3800.7,3799.9,3.503]
[1753852230910,1.4452,3800.1,3800.0,0.73059]
[1753852231515,1.4452,3800.1,3800.0,1.03889]
[1753852232214,1.7555,3800.1,3800.0,1.03889]
[1753852232921,1.7555,3800.1,3800.0,0.5125]
[1753852234716,1.0763,3800.9,3800.0,0.2042]
[1753852234915,1.4452,3800.8,3800.7,0.2042]
[1753852235120,0.6792,3800.2,3800.1,0.5125]
[1753852235318,1.7555,3800.2,3800.1,0.5125]
[1753852235919,1.7555,3800.2,3800.1,1.03888]
[1753852237619,1.4452,3800.2,3800.1,0.5125]
[1753852237818,1.7555,3800.2,3800.1,0.5125]
[1753852238826,1.7555,3800.2,3800.1,1.03888]
[1753852239224,1.7555,3800.2,3800.1,0.5125]
[1753852239429,1.7555,3800.1,3800.0,0.52638]
[1753852239728,1.7555,3800.1,3800.0,1.03888]
[1753852240029,1.7555,3800.1,3800.0,0.5125]
[1753852240528,5.750516,3800.1,3800.0,0.5125]
[1753852243334,0.6792,3799.5,3799.4,1.03897]
[1753852243524,1.7555,3799.5,3799.4,1.03897]
[1753852244126,2.28196,3799.5,3799.4,0.2042]
[1753852244530,0.6792,3799.1,3799.0,4.54203]
[1753852244724,1.7555,3799.1,3799.0,1.03903]
[1753852245424,5.750516,3799.1,3799.0,1.03903]
[1753852245626,5.440216,3799.1,3799.0,1.03903]
[1753852247131,5.750516,3799.1,3799.0,1.03903]
[1753852248330,5.440216,3799.1,3799.0,1.03903]
[1753852248732,4.789216,3799.1,3799.0,1.03903]
[1753852248933,4.305016,3799.1,3799.0,1.03903]
[1753852249326,3.995016,3799.1,3799.0,11.30350401]
[1753852249632,2.48019346,3799.1,3799.0,11.30350401]
[1753852252728,2.78669346,3799.1,3799.0,11.30350401]
[1753852253129,2.48019346,3799.1,3799.0,11.30350401]
[1753852254838,2.78669346,3799.1,3799.0,11.87967354]
[1753852255137,4.22549346,3799.1,3799.0,5.99520401]
[1753852255837,3.88325049,3799.1,3799.0,5.99520401]
[1753852256930,3.88325049,3799.1,3798.9,0.52654]
[1753852257131,1.7453,3799.0,3798.9,0.52654]
[1753852260338,3.88325049,3799.0,3798.9,0.52654]
[1753852261737,1.7453,3798.8,3798.7,0.16511569]
[1753852261937,1.7453,3798.8,3798.7,0.88368569]
[1753852261938,1.59302011,3798.8,3798.7,0.88368569]
[1753852262137,1.59302011,3798.8,3798.7,1.08508569]
[1753852262435,1.59302011,3798.8,3798.7,1.27478569]
[1753852262835,2.13795049,3799.0,3798.8,0.71856]
[1753852263038,3.88325049,3799.0,3798.9,0.5831]
[1753852263235,2.82995049,3799.0,3798.8,0.52656]
[1753852263440,1.7453,3798.9,3798.8,0.52656]
[1753852263640,1.7453,3798.9,3798.8,0.91766]
[1753852263841,1.7453,3798.9,3798.8,1.10966]
[1753852264438,1.7453,3798.9,3798.8,0.91996]
[1753852264639,1.7453,3798.9,3798.7,3.66811569]
[1753852264840,1.7453,3798.8,3798.7,4.38667569]
[1753852265242,1.7453,3798.8,3798.7,4.77777569]
[1753852265439,3.88325049,3798.8,3798.7,4.77777569]
[1753852267043,3.88325049,3798.8,3798.7,1.27477569]
[1753852267346,3.88325049,3798.8,3798.7,0.55851569]
[1753852267737,4.40981049,3798.8,3798.7,0.16511569]
[1753852268140,0.692,3798.3,3798.2,0.01842954]
[1753852268343,1.59297373,3798.3,3798.2,0.01842954]
[1753852269239,2.11960373,3798.3,3798.2,0.01842954]
[1753852270447,4.25755422,3798.3,3798.2,0.01842954]
[1753852272035,4.25755422,3798.3,3797.8,3.47505232]
[1753852272036,2.27198,3797.9,3797.8,3.47505232]
[1753852272240,3.44003735,3797.9,3797.8,3.47505232]
[1753852272445,3.44003735,3797.9,3797.8,0.19484708]
[1753852273942,2.27198,3797.9,3797.8,0.19484708]
[1753852275145,1.7453,3797.9,3797.8,1.31934708]
[1753852275644,3.88325049,3797.9,3797.8,0.58824708]
[1753852276143,3.88325049,3797.9,3797.8,0.19484708]
[1753852276446,3.88325049,3797.9,3797.8,1.31934708]
[1753852279945,4.45998564,3797.9,3797.8,0.58824708]
[1753852280149,4.45998564,3797.9,3797.8,0.19484708]
[1753852287750,3.88325049,3797.9,3797.8,1.60534708]
[1753852287955,2.13795049,3797.9,3797.8,1.60534708]
[1753852288463,2.13795049,3797.9,3797.8,6.87148449]
[1753852288761,1.66395049,3797.9,3797.8,6.87148449]
[1753852288948,1.66395049,3797.9,3797.8,11.87148449]
[1753852290160,3.42335049,3797.9,3797.8,6.87148449]
[1753852290660,3.42335049,3797.9,3797.8,1.60534708]
[1753852292758,2.97335049,3797.9,3797.8,1.60534708]
[1753852292963,1.66395049,3797.9,3797.8,1.60534708]
[1753852293162,1.66395049,3797.9,3797.8,11.87148449]
[1753852293357,1.66395049,3797.9,3797.8,6.87148449]
[1753852295664,1.97315049,3797.9,3797.8,6.87148449]
[1753852296163,3.42335049,3797.9,3797.8,5.66368449]
[1753852296667,3.42335049,3797.9,3797.8,5.84358449]
[1753852297460,3.42335049,3797.9,3797.8,6.14268449]
[1753852297964,2.97335049,3797.9,3797.8,6.14268449]
[1753852299267,2.97335049,3797.9,3797.8,5.84358449]
[1753852299561,0.4952,3797.4,3797.3,3.28020524]
[1753852299757,0.6953,3797.1,3797.0,0.7887]
[1753852299958,1.41699646,3797.1,3797.0,1.0586]
[1753852300166,2.14448646,3797.1,3797.0,1.0586]
[1753852300368,3.80843695,3797.1,3797.0,1.0586]
[1753852301269,3.80843695,3797.1,3797.0,22.5486]
[1753852301566,3.28164695,3797.1,3797.0,22.5486]
[1753852301769,3.28164695,3797.1,3796.9,5.26613741]
[1753852302066,2.28623,3796.8,3796.7,3.28020524]
[1753852302269,0.2007,3796.8,3796.7,4.87200524]
[1753852302570,0.5056,3797.0,3796.9,1.5918]
[1753852302765,1.66395049,3797.1,3797.0,0.52681]
[1753852302962,3.42335049,3797.1,3797.0,4.60254535]
[1753852303160,2.35925049,3797.1,3797.0,3.30984535]
[1753852303464,2.35925049,3797.1,3797.0,1.2927]
[1753852303670,2.35925049,3797.1,3797.0,1.5918]
[1753852304169,2.97335049,3797.1,3797.0,1.5918]
[1753852304564,3.42335049,3797.1,3797.0,1.5918]
[1753852305564,1.0641,3797.0,3796.6,3.64634535]
[1753852305774,0.3092,3796.7,3796.6,2.11866]
[1753852306077,1.0045,3797.0,3796.9,2.11862]
[1753852306473,1.0045,3797.0,3796.9,2.69535515]
[1753852306666,1.66395049,3797.1,3796.9,2.69535515]
[1753852306971,1.66395049,3797.1,3797.0,1.5918]
[1753852307377,1.66395049,3797.1,3797.0,6.85960187]
[1753852308671,1.32153096,3797.1,3797.0,6.85960187]
[1753852310274,1.32153096,3797.1,3797.0,10.16944722]
[1753852310969,2.12533096,3797.1,3797.0,10.16944722]
[1753852311269,2.63093096,3797.1,3797.0,10.16944722]
[1753852311773,1.32153096,3797.1,3797.0,10.16944722]
[1753852312373,1.60683096,3797.1,3797.0,10.16944722]
[1753852312670,1.32153096,3797.1,3797.0,10.16944722]
[1753852314162,1.32153096,3797.1,3797.0,6.85960187]
[1753852314774,1.60683096,3797.1,3797.0,6.85960187]
[1753852316177,1.26443875,3797.1,3797.0,6.85960187]
[1753852316971,1.75923875,3797.1,3797.0,6.85960187]
[1753852317776,2.70943875,3797.1,3797.0,6.86130187]
[1753852318271,1.96033875,3797.1,3797.0,5.84453702]
[1753852318570,2.70943875,3797.1,3797.0,28.66823702]
[1753852318776,2.26603875,3797.1,3797.0,28.97623702]
[1753852319573,2.70943875,3797.1,3797.0,28.97623702]
[1753852320476,2.26603875,3797.1,3797.0,28.97623702]
[1753852320678,2.26603875,3797.1,3797.0,3.31123365]
[1753852320679,2.70943875,3797.1,3797.0,3.31123365]
[1753852320974,3.23622875,3797.1,3796.8,4.4147988]
[1753852321171,2.25712,3796.9,3796.8,3.31123365]
[1753852321373,1.7303,3796.9,3796.8,3.31123365]
[1753852321770,6.7303,3796.9,3796.8,3.31123365]
[1753852322267,1.0344,3796.8,3796.7,0.52684]
[1753852322473,5.0,3796.9,3796.5,3.31123365]
[1753852322474,1.7303,3796.7,3796.5,3.31123365]
[1753852322671,1.22276,3796.7,3796.6,3.31123365]
[1753852323073,1.22276,3796.7,3796.3,0.5269]
[1753852323074,1.22276,3796.7,3796.5,3.31123365]
[1753852323273,1.7303,3796.6,3796.5,3.31123365]
[1753852323771,1.7303,3796.6,3796.5,3.00023365]
[1753852324370,1.7303,3796.6,3796.5,3.52710365]
[1753852324677,1.4246,3796.6,3796.5,7.10181063]
[1753852324879,1.7303,3796.6,3796.5,7.10181063]
[1753852326072,2.70943875,3796.6,3796.5,7.10181063]
[1753852326780,0.97913875,3796.6,3796.5,7.10181063]
[1753852326978,0.97913875,3796.6,3796.5,7.98654578]
[1753852327174,0.97913875,3796.6,3796.5,12.40981063]
[1753852327476,0.97913875,3796.6,3796.5,7.40981063]
[1753852328480,0.97913875,3796.6,3796.5,5.79481063]
[1753852328677,1.76383875,3796.6,3796.5,29.54554578]
[1753852328981,0.97913875,3796.6,3796.5,29.54554578]
[1753852329378,1.96033875,3796.6,3796.5,28.48551063]
[1753852329580,2.70943875,3796.6,3796.5,29.54554578]
[1753852329882,2.70943875,3796.6,3796.5,5.79481063]
[1753852330078,2.70943875,3796.6,3795.8,0.48384975]
[1753852330279,0.6959,3796.5,3796.3,0.5269]
[1753852330582,1.7303,3796.3,3796.2,0.91761]
[1753852330783,1.7303,3796.3,3796.2,1.20651]
[1753852330980,1.7303,3796.3,3796.2,7.10233632]
[1753852331181,1.7303,3796.3,3796.2,6.57542632]
[1753852331480,1.7303,3795.9,3795.8,0.38934975]
[1753852331680,1.69809789,3795.9,3795.8,21.96434975]
[1753852331982,1.69809789,3795.9,3795.8,23.17224975]
[1753852332176,1.69809789,3795.9,3795.8,28.44060668]
[1753852332578,1.69809789,3795.9,3795.8,28.44160668]
[1753852333084,1.69809789,3795.9,3795.8,31.7516982]
[1753852333379,1.69809789,3795.9,3795.8,28.44160668]
[1753852335283,2.67723664,3795.9,3795.8,28.74960668]
[1753852335486,2.67723664,3795.9,3795.8,7.17360668]
[1753852335682,2.67723664,3795.9,3795.8,28.72460668]
[1753852336080,2.67723664,3795.9,3795.8,28.41660668]
[1753852336384,2.67723664,3795.9,3795.8,28.72460668]
[1753852337083,0.97913875,3795.9,3795.8,28.72460668]
[1753852337282,0.2853,3796.6,3796.5,0.52687]
[1753852337480,1.7303,3797.2,3797.1,0.52678]
[1753852337680,1.7303,3797.2,3797.1,1.01008]
[1753852337980,1.7303,3797.2,3797.1,5.9900921]
[1753852338284,1.7303,3797.2,3797.1,0.72118]
[1753852338474,1.7303,3797.2,3797.1,5.9900921]
[1753852338678,1.7303,3797.2,3797.1,5.7956921]
[1753852338878,2.25708,3797.2,3797.1,5.2689121]
[1753852339384,1.7303,3797.2,3797.1,5.2689121]
[1753852340782,5.725316,3797.2,3797.1,5.2689121]
[1753852341684,0.7118,3796.3,3796.2,1.2124]
[1753852341883,1.7638,3796.3,3796.2,23.7721]
[1753852342080,1.7638,3796.3,3796.2,7.51020822]
[1753852342282,1.7638,3796.3,3796.2,29.03120822]
[1753852342682,1.7638,3796.3,3796.2,28.21680822]
[1753852342881,1.7638,3796.3,3796.2,6.98330822]
[1753852343082,1.7638,3796.3,3796.2,28.50330822]
[1753852344188,1.0068,3796.4,3796.3,1.2332]
[1753852344388,1.7638,3796.4,3796.3,1.7162]
[1753852345489,5.758816,3796.4,3796.3,1.7162]
[1753852346089,4.706816,3796.4,3796.3,1.7162]
[1753852346285,4.396516,3796.4,3796.3,1.7162]
[1753852346687,5.758816,3796.4,3796.3,1.7162]
[1753852349392,5.75383909,3796.4,3796.3,1.7162]
[1753852350191,5.45883909,3796.4,3796.3,1.7162]
[1753852350389,5.75383909,3796.4,3796.3,1.2263]
[1753852350890,5.75383909,3796.4,3796.3,1.4287]
[1753852351187,1.2554,3796.3,3796.2,5.79401822]
[1753852351489,1.7638,3796.3,3796.2,27.26901822]
[1753852351686,0.7118,3796.3,3796.0,0.96423]
[1753852351888,1.7638,3796.1,3796.0,1.16673]
[1753852352088,1.7638,3796.1,3796.0,6.43508693]
[1753852352986,1.7638,3796.1,3796.0,6.71568693]
[1753852353391,1.7638,3796.1,3796.0,5.75145693]
[1753852353592,0.7118,3796.1,3795.9,3.31009152]
[1753852353801,1.7638,3795.9,3795.8,4.71751127]
[1753852354190,1.7638,3795.9,3795.8,1.40741975]
[1753852354388,1.7638,3795.9,3795.8,2.43811975]
[1753852354784,0.6983,3796.2,3796.1,2.24313]
[1753852354988,0.6983,3796.2,3796.1,24.28220176]
[1753852355293,5.758816,3796.2,3796.1,24.28220176]
[1753852356393,3.995016,3796.2,3796.1,24.28220176]
[1753852356691,3.995016,3796.2,3796.1,29.55069747]
[1753852357590,3.995016,3796.2,3796.1,29.26319747]
[1753852357793,5.758816,3796.2,3796.1,22.55800176]
[1753852357991,5.758816,3796.2,3796.1,23.04110176]
[1753852358394,5.758816,3796.2,3796.1,23.24350176]
[1753852358596,5.758816,3796.2,3796.1,24.27420176]
[1753852359286,5.758816,3796.2,3796.1,0.52693]
[1753852359491,5.758816,3796.2,3796.1,23.69213]
[1753852360692,5.758816,3796.2,3796.1,23.09873]
[1753852360894,1.7638,3796.1,3796.0,0.4831]
[1753852361197,1.7638,3796.1,3796.0,21.9221]
[1753852363398,1.4688,3796.0,3795.9,0.52695]
[1753852363593,3.995016,3796.2,3795.8,0.19494975]
[1753852363594,1.7638,3795.9,3795.8,0.19494975]
[1753852363796,2.29076,3795.9,3795.8,0.19494975]
[1753852364092,1.7638,3795.3,3795.2,21.45544411]
[1753852364294,1.7638,3795.3,3795.2,0.01844411]
[1753852364686,6.7638,3795.3,3795.2,0.01844411]
[1753852365294,10.758816,3795.3,3795.2,0.01844411]
[1753852366700,5.758816,3795.3,3795.2,0.01844411]
[1753852367800,5.758816,3795.3,3795.2,1.42874411]
[1753852367994,5.758816,3795.3,3795.2,1.73464411]
[1753852369306,5.758816,3795.3,3795.2,0.70394411]
[1753852369496,5.758816,3795.3,3795.2,0.50154411]
[1753852369696,5.758816,3795.3,3795.2,0.01844411]
[1753852370794,3.995016,3795.3,3795.2,1.42874411]
[1753852371001,3.995016,3795.3,3795.2,7.00438918]
[1753852371796,4.200416,3795.3,3795.2,6.70778918]
[1753852372001,4.200416,3795.3,3795.2,7.00418918]
[1753852372200,3.995016,3795.3,3795.2,28.43118918]
[1753852372394,1.0051,3796.2,3796.1,0.708]
[1753852372598,1.7752,3796.2,3796.1,1.716]
[1753852373599,1.7752,3796.2,3796.1,2.24293]
[1753852374798,1.7752,3796.2,3796.1,1.2336]
[1753852374998,1.7752,3796.2,3796.1,0.9372]
[1753852375205,1.7752,3796.2,3795.8,0.5807]
[1753852375500,0.7192,3795.9,3795.8,6.98449571]
[1753852375701,1.7752,3795.9,3795.8,6.98449571]
[1753852375900,1.7752,3795.9,3795.8,1.716]
[1753852377200,1.7752,3795.9,3795.7,0.52698]
[1753852377503,1.7752,3795.8,3795.7,6.7881921]
[1753852377905,1.7752,3795.8,3795.7,7.5118921]
[1753852378506,1.7752,3795.8,3795.7,7.2275921]
[1753852378707,1.7752,3795.8,3795.7,7.5118921]
[1753852378907,1.7752,3795.8,3795.7,6.8002921]
[1753852379205,1.7752,3795.8,3795.7,1.03689]
[1753852379405,1.7752,3795.8,3795.7,1.716]
[1753852379605,1.7752,3795.8,3795.7,1.2336]
[1753852380004,0.7192,3795.6,3795.5,23.14]
[1753852380207,1.7752,3795.6,3795.5,1.716]
[1753852380708,0.7192,3795.6,3795.5,1.1353]
[1753852380911,1.7752,3795.6,3795.5,1.1353]
[1753852381212,1.7752,3795.3,3795.2,3.52144411]
[1753852381405,1.7752,3795.3,3795.2,0.01844411]
[1753852382101,1.7752,3795.3,3795.2,0.52834411]
[1753852382703,1.7752,3795.3,3795.2,0.72644411]
[1753852382910,1.7752,3795.3,3795.2,1.73444411]
[1753852383904,1.0051,3795.3,3795.2,1.73444411]
[1753852384109,5.770216,3795.8,3795.7,0.708]
[1753852384703,3.995016,3795.8,3795.7,1.0044]
[1753852384908,3.995016,3795.8,3795.7,1.716]
[1753852385106,3.995016,3795.8,3795.7,8.15528239]
[1753852385611,5.770216,3795.8,3795.7,1.716]
[1753852386206,0.5138,3795.5,3795.4,3.8068]
[1753852386411,1.7752,3795.5,3795.4,5.219]
[1753852388013,0.4117,3795.5,3795.4,5.219]
[1753852389512,1.7752,3795.5,3795.4,4.211]
[1753852390114,1.7752,3795.5,3795.4,3.503]
[1753852390315,5.770216,3795.5,3795.4,3.503]
[1753852390713,1.7752,3795.3,3795.2,0.01844411]
[1753852392426,1.7752,3795.3,3794.4,4.01992762]
[1753852392427,0.7192,3794.5,3794.4,4.01992762]
[1753852392724,1.7752,3794.5,3794.4,1.716]
[1753852392923,1.0051,3794.5,3794.4,1.716]
[1753852393115,0.7192,3794.5,3794.3,3.83910762]
[1753852393317,2.30237,3794.4,3794.3,4.74362762]
[1753852393521,1.3113,3794.4,3794.3,2.24318]
[1753852393823,1.7752,3794.4,3794.3,2.24318]
[1753852394320,0.4117,3794.4,3794.3,2.24318]
[1753852394627,0.2054,3794.4,3794.3,2.24318]
[1753852394926,1.55247,3795.1,3795.0,0.708]
[1753852395518,2.30227,3795.1,3795.0,0.708]
[1753852396019,1.24627,3795.1,3794.7,0.52712]
[1753852396223,0.52706,3795.2,3794.9,0.52709]
[1753852396422,1.7752,3795.1,3795.0,1.716]
[1753852396722,1.7752,3795.1,3795.0,0.708]
[1753852397318,1.7752,3795.1,3794.8,0.5271]
[1753852397628,0.7192,3795.0,3794.9,0.5099]
[1753852397827,0.7192,3795.0,3794.9,0.708]
[1753852398126,1.7752,3795.0,3794.9,1.716]
[1753852398524,1.7752,3795.0,3794.9,0.5099]
[1753852398722,1.7752,3795.0,3794.8,0.5271]
[1753852398923,1.7752,3794.5,3794.4,1.716]
[1753852399626,0.4117,3794.5,3794.4,1.716]
[1753852400428,4.406716,3794.5,3794.4,1.716]
[1753852400625,4.692616,3794.5,3794.4,1.716]
[1753852401531,3.995016,3794.5,3794.4,1.716]
[1753852402027,3.995016,3794.5,3794.4,6.716]
[1753852402420,3.995016,3794.5,3794.4,1.716]
[1753852402626,3.995016,3794.5,3794.4,6.98685611]
[1753852404829,3.995016,3794.5,3794.4,7.56440186]
[1753852405822,1.7495,3795.5,3795.4,1.703]
[1753852406027,1.7495,3795.5,3795.4,2.28054575]
[1753852406727,1.7495,3795.5,3795.4,1.703]
[1753852407827,0.2014,3795.5,3795.4,1.703]
[1753852408028,0.2014,3795.6,3795.5,1.703]
[1753852408924,0.3911,3795.6,3795.5,1.703]
[1753852409129,1.7495,3795.6,3795.5,1.703]
[1753852409341,1.2946,3795.5,3795.4,0.6876]
[1753852409629,1.7495,3795.5,3795.4,1.703]
[1753852410728,1.2544,3795.5,3794.7,0.4201]
[1753852410926,0.494,3795.1,3795.0,0.4854]
[1753852411122,0.1897,3795.1,3795.0,1.1077]
[1753852411323,4.678716,3795.6,3795.5,0.6876]
[1753852411625,5.744516,3795.6,3795.5,2.23001]
[1753852411828,3.995016,3795.6,3795.5,2.23001]
[1753852412529,4.386116,3795.6,3795.5,2.23001]
[1753852412731,5.744516,3795.6,3795.5,2.23001]
[1753852412930,5.744516,3795.6,3795.5,1.703]
[1753852413429,5.744516,3795.6,3795.5,2.23001]
[1753852413630,5.744516,3795.6,3795.5,1.703]
[1753852414333,5.744516,3795.6,3795.5,1.4149]
[1753852414731,0.6837,3795.1,3795.0,23.30698]
[1753852414933,1.7495,3795.1,3795.0,23.59508]
[1753852415227,1.0658,3795.4,3795.0,27.16140855]
[1753852415433,5.744516,3795.1,3795.0,28.86440855]
[1753852415635,5.744516,3795.1,3795.0,7.49940855]
[1753852416230,5.744516,3795.1,3795.0,5.26932855]
[1753852416432,0.6837,3794.8,3794.7,1.703]
[1753852416626,1.7495,3794.8,3794.7,1.703]
[1753852417636,2.27661,3794.8,3794.7,1.703]
[1753852419135,1.2544,3794.8,3794.7,0.4854]
[1753852419335,2.27661,3794.8,3794.7,0.6876]
[1753852419637,1.7495,3794.8,3794.7,1.703]
[1753852420041,1.2946,3794.8,3794.7,0.2819]
[1753852420234,1.82171,3794.8,3794.7,1.703]
[1753852420429,5.289616,3794.8,3794.7,1.703]
[1753852420635,3.995016,3794.8,3794.7,1.703]
[1753852421536,3.995016,3794.8,3794.7,8.14365572]
[1753852423135,3.995016,3794.8,3794.7,5.27043942]
[1753852423332,5.744516,3794.8,3794.7,6.77123942]
[1753852423543,5.744516,3794.8,3794.7,6.97343942]
[1753852424534,5.744516,3794.8,3794.7,5.27043942]
[1753852424735,6.271636,3794.8,3794.4,0.7273]
[1753852424949,0.6965,3794.7,3794.6,1.703]
[1753852425238,0.3911,3794.7,3794.6,1.703]
[1753852425445,1.7495,3794.7,3794.6,1.703]
[1753852426843,1.2946,3794.7,3794.6,1.703]
[1753852427246,1.7495,3794.7,3794.6,1.703]
[1753852429641,3.995016,3794.8,3794.6,2.23014]
[1753852429834,0.3911,3794.7,3794.6,1.21474]
[1753852430039,1.7495,3794.7,3794.6,1.21474]
[1753852430241,1.7495,3794.7,3794.6,0.6876]
[1753852430440,5.744516,3794.7,3794.6,1.703]
[1753852430947,4.678716,3794.7,3794.6,1.703]
[1753852431142,5.744516,3794.7,3794.6,1.703]
[1753852431544,5.289616,3794.7,3794.6,1.703]
[1753852431943,5.741016,3794.7,3794.6,1.703]
[1753852432143,0.52714,3794.6,3794.1,3.31192762]
[1753852432343,1.7398,3794.2,3794.1,4.52442762]
[1753852432550,1.7398,3794.2,3794.1,6.98277831]
[1753852433343,1.7398,3794.2,3794.1,5.27057831]
[1753852434350,1.7398,3794.2,3794.1,5.76587831]
[1753852434547,1.7398,3794.2,3794.1,6.68927831]
[1753852434748,1.7398,3794.2,3794.1,6.98277831]
[1753852435349,5.734816,3794.2,3794.1,6.98277831]
[1753852439248,5.232516,3794.2,3794.1,6.98277831]
[1753852439453,5.734816,3794.2,3794.1,7.56038668]
[1753852440149,5.734816,3794.2,3794.1,6.98277831]
[1753852440342,5.734816,3794.2,3794.1,1.1387]
[1753852440750,5.734816,3794.2,3794.1,1.4187]
[1753852440948,5.734816,3794.2,3794.1,1.7122]
[1753852441244,5.734816,3794.2,3794.1,1.4187]
[1753852441655,5.734816,3794.2,3794.1,23.0552]
[1753852442148,5.734816,3794.2,3793.8,0.77266089]
[1753852442356,1.6154,3793.9,3793.8,0.19505252]
[1753852442551,1.6154,3793.9,3793.8,1.90725252]
[1753852443056,0.6907,3794.1,3794.0,1.7122]
[1753852443251,3.995016,3794.2,3794.1,0.52718]
[1753852443449,3.995016,3794.2,3794.1,2.81698837]
[1753852443753,3.995016,3794.2,3794.1,2.23938]
[1753852444354,3.995016,3794.2,3794.1,2.81698837]
[1753852444544,3.995016,3794.2,3794.1,2.23938]
[1753852444747,4.485616,3794.2,3794.1,2.23938]
[1753852444948,4.684516,3794.2,3794.1,0.7015]
[1753852445249,4.684516,3794.2,3794.1,1.1387]
[1753852445449,1.7398,3793.9,3793.8,0.19505252]
[1753852445856,2.31740837,3793.9,3793.8,0.19505252]
[1753852446250,1.0503,3792.9,3792.5,2.62925762]
[1753852446452,1.2884,3792.6,3792.5,3.33075762]
[1753852446655,0.9929,3792.6,3792.5,27.3961897]
[1753852446853,0.9929,3792.6,3792.5,22.4045]
[1753852447254,0.9929,3792.6,3792.5,27.67799672]
[1753852447454,0.9929,3792.6,3792.5,28.40869672]
[1753852447655,1.2884,3792.6,3792.5,28.13369672]
[1753852447855,1.2884,3792.6,3792.5,6.70569672]
[1753852448054,1.2884,3792.6,3792.5,28.13169672]
[1753852448456,1.7398,3792.6,3792.5,28.12869672]
[1753852448655,1.2884,3792.6,3792.5,28.12869672]
[1753852449160,0.4906,3793.1,3793.0,1.7122]
[1753852449360,0.9929,3793.1,3793.0,22.8582]
[1753852449658,1.7398,3793.1,3793.0,26.69649672]
[1753852449855,1.7398,3793.1,3792.4,0.7307]
[1753852449856,0.394,3792.5,3792.4,1.4322]
[1753852450058,0.9929,3792.5,3792.4,22.8572]
[1753852450253,4.987916,3792.5,3792.4,28.41000157]
[1753852450854,4.987916,3792.5,3792.4,6.98500157]
[1753852451055,4.987916,3792.5,3792.4,28.41200157]
[1753852452461,4.987916,3792.5,3792.4,28.98960994]
[1753852452659,4.987916,3792.5,3792.4,28.70960994]
[1753852453054,5.734816,3792.5,3792.4,28.12200157]
[1753852453758,5.734816,3792.5,3792.4,28.69960994]
[1753852453959,5.734816,3792.5,3792.4,28.40210994]
[1753852454561,5.734816,3792.5,3792.4,28.69560994]
[1753852455457,5.734816,3792.5,3792.4,28.11800157]
[1753852455657,5.734816,3792.5,3792.4,6.70500157]
[1753852455857,5.734816,3792.5,3792.4,28.11900157]
[1753852456157,5.734816,3792.5,3792.4,28.11000157]
[1753852456458,5.734816,3792.5,3792.4,28.63542157]
[1753852456657,5.734816,3792.5,3792.4,28.63442157]
[1753852456857,5.734816,3792.5,3792.4,29.21202994]
[1753852457164,3.995016,3792.5,3792.4,29.21202994]
[1753852457362,3.995016,3792.5,3792.4,29.49202994]
[1753852457860,4.291716,3792.5,3792.4,29.49202994]
[1753852458061,4.485616,3792.5,3792.4,29.49202994]
[1753852458365,5.734816,3792.5,3792.4,28.10600157]
[1753852458663,5.734816,3792.5,3792.4,28.09700157]
[1753852459070,5.734816,3792.5,3792.4,5.97430157]
[1753852459258,5.734816,3792.5,3792.4,27.80250157]
[1753852459766,5.734816,3792.5,3792.4,28.09600157]
[1753852461162,5.734816,3792.5,3792.4,28.09400157]
[1753852461365,5.734816,3792.5,3792.4,28.08500157]
[1753852462462,3.995016,3792.5,3792.4,28.37660157]
[1753852463263,1.25588,3794.1,3792.6,1.31847]
[1753852463569,0.298,3794.2,3793.6,0.52724]
[1753852463570,0.6902,3793.8,3793.6,0.52724]
[1753852463769,0.6902,3793.8,3793.7,21.403]
[1753852464370,1.7169,3793.8,3793.7,21.403]
[1753852464559,0.6902,3793.8,3793.6,21.92624]
[1753852464764,1.7169,3793.7,3793.6,21.92624]
[1753852465664,1.7169,3793.7,3793.6,0.52724]
[1753852465970,1.7169,3793.7,3793.6,21.91824]
[1753852466664,4.293016,3793.7,3793.6,27.19020763]
[1753852468773,5.281616,3793.7,3793.6,27.19020763]
[1753852469372,5.711916,3793.7,3793.6,26.65296763]
[1753852469573,5.711916,3793.7,3793.6,5.27196763]
[1753852469774,4.685216,3793.7,3793.1,0.57760837]
[1753852469975,4.685216,3793.7,3793.5,0.52726]
[1753852470179,1.0267,3793.6,3793.3,0.52728]
[1753852470382,0.4303,3793.3,3792.5,1.31851]
[1753852470584,0.9886,3792.6,3792.5,0.5274]
[1753852470778,0.9886,3792.6,3792.5,21.9144]
[1753852470982,0.9886,3792.6,3792.5,27.18636763]
[1753852471286,0.298,3792.6,3792.5,27.18636763]
[1753852471685,0.298,3792.6,3792.5,27.763976]
[1753852472079,0.298,3792.6,3792.5,27.758976]
[1753852473278,0.7916,3792.6,3792.5,27.758976]
[1753852473483,0.7916,3792.6,3792.5,27.751976]
[1753852474188,1.7169,3792.6,3792.5,27.751976]
[1753852474490,1.7169,3792.6,3792.5,6.376976]
[1753852474685,1.2866,3792.6,3792.5,6.376976]
[1753852474884,1.2866,3792.6,3792.5,27.743976]
[1753852475089,1.7169,3792.6,3792.5,27.743976]
[1753852475486,5.711916,3792.6,3792.5,27.743976]
[1753852476083,5.711916,3792.6,3792.5,27.744976]
[1753852476489,5.711916,3792.6,3792.5,6.376976]
[1753852476791,5.711916,3792.6,3792.5,27.736976]
[1753852477190,5.711916,3792.6,3792.5,6.376976]
[1753852477690,5.711916,3792.6,3792.5,27.732976]
[1753852479087,5.711916,3792.6,3792.5,27.731976]
[1753852479882,5.711916,3792.6,3792.5,27.737676]
[1753852480588,5.711916,3792.6,3792.5,5.855276]